bitfinex/quotes_ETHUSD_20240820
["timestamp","ask_amount","ask_price","bid_price","bid_amount"]
[1724156521231,0.035382,2654.8,2654.7,3.7669]
[1724156522465,1.631382,2654.8,2654.5,3.76718]
[1724156523574,1.631382,2654.8,2654.6,3.76704]
[1724156524262,0.035382,2654.8,2654.7,3.7669]
[1724156524461,0.035382,2654.8,2654.7,4.766324]
[1724156524845,0.55,2655.0,2654.8,3.76674]
[1724156525354,1.97389501,2655.1,2654.8,3.76667]
[1724156525558,5.86239501,2655.2,2654.8,3.76667]
[1724156525719,0.55,2655.1,2654.9,3.76662]
[1724156526344,0.55,2655.1,2654.9,4.6198914]
[1724156526556,1.97389501,2655.2,2655.0,3.76647]
[1724156526765,1.97389501,2655.2,2655.0,7.53286]
[1724156526967,1.97389501,2655.3,2655.0,3.76638]
[1724156527134,2.52389501,2655.3,2655.1,3.76632]
[1724156527335,0.41472006,2655.2,2655.1,3.76632]
[1724156527534,0.41472006,2655.2,2655.1,8.61623714]
[1724156528141,3.569838,2655.6,2655.2,3.76616]
[1724156528339,0.41467428,2655.5,2655.2,3.76616]
[1724156528541,0.41467428,2655.4,2655.2,3.76616]
[1724156528772,1.973838,2655.6,2655.2,3.76616]
[1724156528773,0.41467428,2655.3,2655.2,3.76616]
[1724156529469,0.41467428,2655.5,2655.2,3.76616]
[1724156529675,0.41467428,2655.4,2655.1,3.76624]
[1724156529827,0.41467428,2655.3,2655.1,3.76624]
[1724156530141,9.504908,2655.7,2655.1,3.76624]
[1724156530351,0.03586867,2655.2,2655.1,3.76624]
[1724156530640,0.4505757,2655.2,2655.0,3.76638]
[1724156530841,2.2918,2655.4,2655.0,3.76638]
[1724156531058,0.03575125,2655.1,2655.0,3.76638]
[1724156531232,0.55,2655.3,2655.0,3.76638]
[1724156531731,0.03586739,2655.2,2655.0,3.76638]
[1724156531969,0.55,2655.3,2655.0,3.76638]
[1724156532193,0.03575125,2655.1,2655.0,3.76638]
[1724156532480,0.55,2655.3,2655.0,3.76638]
[1724156532649,0.03575125,2655.1,2655.0,3.76638]
[1724156532845,0.55,2655.3,2655.0,3.76638]
[1724156533049,0.03575125,2655.1,2655.0,3.76638]
[1724156533259,0.55,2655.3,2655.0,3.76638]
[1724156533459,0.03575125,2655.1,2655.0,3.76638]
[1724156533642,0.55,2655.3,2655.0,3.76638]
[1724156533829,0.03575125,2655.1,2655.0,3.76638]
[1724156534028,0.55,2655.3,2655.0,3.76638]
[1724156534247,0.03575125,2655.1,2655.0,3.76638]
[1724156534452,0.55,2655.3,2655.0,3.67978]
[1724156534713,0.03575125,2655.1,2655.0,3.67978]
[1724156535005,0.55,2655.3,2655.0,3.67978]
[1724156535206,0.03575125,2655.1,2655.0,3.67978]
[1724156535371,0.55,2655.3,2655.0,3.67978]
[1724156535688,0.03575125,2655.1,2655.0,3.67978]
[1724156535895,0.55,2655.3,2655.0,3.67978]
[1724156536054,0.03575125,2655.1,2655.0,3.67978]
[1724156536756,0.55,2655.3,2654.8,7.53341]
[1724156536953,0.03575125,2655.1,2654.8,3.76666]
[1724156537197,0.03575125,2655.1,2654.6,3.76695]
[1724156537198,2.68203532,2655.0,2654.6,3.76695]
[1724156537403,0.96477146,2654.9,2654.6,7.5339]
[1724156537707,0.55,2654.9,2654.7,3.76688]
[1724156538023,0.03533528,2654.8,2654.7,3.76688]
[1724156538298,0.03533528,2654.8,2654.6,3.76695]
[1724156538788,0.03533528,2654.8,2654.4,3.76723]
[1724156538789,0.41482095,2654.7,2654.3,3.76742]
[1724156538993,4.42876253,2654.8,2654.3,3.76742]
[1724156539153,4.42876253,2654.8,2654.2,3.76747]
[1724156539154,0.96481699,2654.7,2654.4,3.76732]
[1724156539356,0.41481699,2654.6,2654.4,3.76732]
[1724156539556,0.55,2654.5,2654.4,3.76732]
[1724156539757,0.55,2654.5,2654.3,3.76746]
[1724156539979,4.3169,2654.7,2654.2,3.76747]
[1724156540184,2.86912379,2654.6,2654.2,3.76747]
[1724156540538,2.86912379,2654.6,2654.1,3.76764]
[1724156540539,0.55,2654.5,2654.1,3.76764]
[1724156540661,0.55,2654.5,2654.2,3.76759]
[1724156541670,0.55,2654.5,2654.0,7.53557]
[1724156541876,0.55,2654.5,2654.1,3.76774]
[1724156543296,0.55,2654.5,2654.2,3.76753]
[1724156543595,0.55,2654.5,2654.3,3.76747]
[1724156545522,0.55,2654.7,2654.3,3.76747]
[1724156545660,0.41472691,2654.6,2653.9,6.1492]
[1724156545857,0.55,2654.5,2654.3,7.53476]
[1724156546068,0.55,2654.5,2654.3,3.76738]
[1724156546269,0.55,2654.5,2654.1,3.76763]
[1724156546473,4.31697,2654.7,2654.2,3.76759]
[1724156546714,0.41471766,2654.6,2654.2,3.76759]
[1724156546995,0.96471766,2654.5,2654.2,3.76759]
[1724156547162,0.55,2654.5,2654.2,3.76759]
[1724156547498,0.55,2654.6,2654.2,3.76759]
[1724156547700,0.41475536,2654.5,2654.2,3.76759]
[1724156547998,0.55,2654.4,2654.2,3.76759]
[1724156548498,0.55,2654.6,2654.2,3.76759]
[1724156548704,0.41475013,2654.5,2654.2,3.61689]
[1724156548862,0.55,2654.4,2654.2,3.61689]
[1724156549387,0.55,2654.6,2654.2,3.61689]
[1724156549584,0.41475907,2654.5,2654.2,3.61689]
[1724156549769,0.55,2654.4,2654.2,3.61689]
[1724156550183,0.55,2654.6,2654.2,3.61689]
[1724156550383,0.41477015,2654.5,2654.2,3.61689]
[1724156550596,0.55,2654.4,2654.2,3.76761]
[1724156550787,2.146,2654.6,2654.2,3.76761]
[1724156550989,0.41474693,2654.5,2654.2,3.76761]
[1724156551205,0.96474693,2654.4,2654.2,3.76761]
[1724156551497,0.55,2654.3,2654.2,3.76761]
[1724156551700,3.05204837,2654.6,2654.2,3.76761]
[1724156551901,0.41471538,2654.5,2654.2,3.76761]
[1724156552067,0.96471538,2654.4,2654.1,7.53528]
[1724156552263,1.05290513,2654.5,2654.1,7.53528]
[1724156552487,0.96469428,2654.4,2654.1,7.53528]
[1724156552686,0.55,2654.4,2654.1,7.53528]
[1724156552892,0.55,2654.5,2654.1,3.76763]
[1724156553133,0.41464679,2654.4,2654.1,7.53527]
[1724156553403,0.55,2654.3,2654.1,7.53527]
[1724156553896,0.55,2654.5,2654.1,3.76763]
[1724156554104,0.41464889,2654.4,2654.1,3.76763]
[1724156554304,0.55,2654.3,2654.1,3.76763]
[1724156554767,0.55,2654.5,2654.1,7.53532]
[1724156554971,0.41465675,2654.4,2654.1,7.53532]
[1724156555285,0.55,2654.3,2654.1,7.53532]
[1724156555487,0.55,2654.3,2654.1,3.76763]
[1724156555676,1.596,2654.4,2654.1,3.76763]
[1724156555877,0.55,2654.3,2654.1,3.76763]
[1724156556277,0.55,2654.3,2654.1,7.53531]
[1724156556679,0.55,2654.3,2654.2,3.76761]
[1724156556874,0.55,2654.5,2654.2,3.76761]
[1724156557082,0.41465908,2654.4,2654.2,3.76761]
[1724156557280,0.55,2654.3,2654.2,3.76761]
[1724156557694,0.55,2654.5,2654.2,3.76761]
[1724156557896,0.4146488,2654.4,2654.2,3.76761]
[1724156558209,0.55,2654.3,2654.2,3.76761]
[1724156558410,0.55,2654.5,2654.2,3.76761]
[1724156558710,0.41466112,2654.4,2654.2,3.76761]
[1724156558872,0.55,2654.3,2654.2,3.76761]
[1724156559073,0.55,2654.3,2654.1,7.5353]
[1724156559269,0.55,2654.5,2654.1,7.5353]
[1724156559469,0.41466459,2654.4,2654.1,7.5353]
[1724156559705,0.55,2654.3,2654.1,7.5353]
[1724156559911,0.55,2654.5,2654.1,7.5353]
[1724156560066,0.41466144,2654.4,2654.1,7.5353]
[1724156560270,0.55,2654.3,2654.1,7.5353]
[1724156560670,0.55,2654.5,2654.1,7.5353]
[1724156560897,0.41464778,2654.4,2654.1,7.5353]
[1724156561112,0.55,2654.3,2654.1,7.5353]
[1724156561284,0.55,2654.5,2654.1,7.5353]
[1724156561485,0.41466326,2654.4,2654.1,7.5353]
[1724156561687,0.55,2654.3,2654.2,3.76761]
[1724156561887,0.55,2654.5,2654.2,3.76761]
[1724156564807,0.4146423,2654.4,2654.3,6.05187]
[1724156565131,1.596,2654.9,2654.6,3.76698]
[1724156565428,0.41472326,2654.8,2654.6,3.76698]
[1724156565667,0.41472326,2654.7,2654.6,3.76698]
[1724156566318,0.41472326,2654.8,2654.6,3.76698]
[1724156566528,0.96472326,2654.7,2654.6,3.76698]
[1724156566825,0.96472326,2654.7,2654.4,3.76721]
[1724156566826,0.96472326,2654.7,2654.4,7.5344]
[1724156567025,0.96472326,2654.6,2654.5,3.76717]
[1724156570619,0.9646864,2654.6,2654.5,3.76717]
[1724156574499,0.96468357,2654.6,2654.5,3.76717]
[1724156574828,0.96468357,2654.6,2654.4,3.76731]
[1724156575023,0.41468357,2654.5,2654.4,3.76731]
[1724156576218,0.41467094,2654.5,2654.4,3.76731]
[1724156577128,0.41467094,2654.5,2654.4,7.53463]
[1724156577337,0.41467094,2654.5,2654.4,8.516533]
[1724156577546,1.97192861,2655.1,2654.9,3.76662]
[1724156577725,0.41471114,2655.0,2654.9,3.76662]
[1724156578322,1.97408504,2655.3,2654.9,3.76662]
[1724156578519,0.41472702,2655.2,2654.9,3.76662]
[1724156578719,0.41472702,2655.1,2654.9,3.76662]
[1724156578950,0.96472702,2655.0,2654.9,3.76662]
[1724156580051,0.96472702,2655.0,2654.8,3.76674]
[1724156580253,0.96472702,2655.0,2654.7,3.76686]
[1724156580254,0.41472702,2654.9,2654.7,3.76686]
[1724156580482,0.41472702,2654.8,2654.7,3.76686]
[1724156580631,0.41472702,2654.8,2654.6,3.76696]
[1724156580849,0.96472702,2654.7,2654.5,7.31]
[1724156581052,0.41472702,2654.6,2654.5,7.31]
[1724156583070,0.41472702,2654.6,2654.5,3.76718]
[1724156585588,0.41465156,2654.6,2654.5,3.76718]
[1724156585763,0.41465156,2654.6,2654.4,3.7673]
[1724156585961,0.41465156,2654.5,2654.4,7.53454]
[1724156586164,0.41465156,2654.5,2654.0,7.31]
[1724156586353,0.96465156,2654.4,2654.0,13.50655]
[1724156586665,0.41465156,2654.3,2654.2,3.76761]
[1724156586858,0.96465156,2654.3,2654.2,3.76761]
[1724156588499,1.97541079,2654.8,2654.4,3.76719]
[1724156588694,0.96460621,2654.7,2654.4,3.76721]
[1724156588992,0.55,2654.7,2654.3,3.76735]
[1724156589146,0.41460235,2654.6,2654.4,3.76732]
[1724156589345,0.41460235,2654.5,2654.4,3.76732]
[1724156592893,0.55,2654.7,2654.4,3.76732]
[1724156593079,0.41460407,2654.6,2654.4,3.76732]
[1724156593290,0.41460407,2654.5,2654.4,3.76732]
[1724156593509,0.41460407,2654.6,2654.4,3.76732]
[1724156593807,0.41460407,2654.5,2654.4,3.76732]
[1724156593976,0.41460407,2654.5,2654.3,3.76735]
[1724156594177,2.5252554,2654.7,2654.3,3.76735]
[1724156594178,0.96460407,2654.4,2654.3,3.76735]
[1724156596316,0.41460407,2654.4,2654.3,7.53482]
[1724156596517,0.41469666,2654.6,2654.4,3.76731]
[1724156596690,0.55,2654.5,2654.4,3.76731]
[1724156596889,0.41469694,2654.5,2654.4,3.76731]
[1724156597127,0.96469694,2654.5,2654.4,3.76731]
[1724156597303,0.96470463,2654.5,2654.4,3.76731]
[1724156598804,1.97568164,2655.1,2655.0,3.76647]
[1724156599008,0.41472494,2655.1,2655.0,11.60014]
[1724156599294,2.37081797,2655.6,2655.5,3.76576]
[1724156599295,1.97568164,2655.6,2655.5,3.76576]
[1724156599493,0.41464685,2655.6,2655.4,3.76591]
[1724156599700,0.41464685,2655.5,2655.4,3.76591]
[1724156600796,1.97472512,2655.7,2655.4,3.76591]
[1724156600997,0.41466406,2655.6,2655.4,3.76591]
[1724156601208,0.41466406,2655.5,2655.4,3.76591]
[1724156601410,0.41466406,2655.6,2655.4,3.76591]
[1724156601934,0.55,2655.5,2655.4,3.76591]
[1724156602137,0.96466406,2655.5,2655.4,3.76591]
[1724156603711,0.96466406,2655.5,2655.3,3.76604]
[1724156604011,0.41466406,2655.4,2655.2,3.76612]
[1724156604197,0.41466406,2655.4,2655.2,3.76611]
[1724156604699,0.41466406,2655.4,2655.3,3.76605]
[1724156604907,0.96466406,2655.4,2655.3,3.76605]
[1724156607231,0.55,2655.4,2655.3,3.76605]
[1724156607401,0.96467675,2655.4,2655.3,3.76605]
[1724156608208,0.55,2655.4,2655.3,3.76605]
[1724156609523,0.55,2655.4,2655.3,3.76483882]
[1724156609938,2.3165,2655.8,2655.5,3.76568]
[1724156610247,0.96466073,2655.7,2655.5,3.76568]
[1724156610419,0.41466073,2655.6,2655.5,3.76568]
[1724156610618,0.96466073,2655.6,2655.5,3.76568]
[1724156612471,0.55,2655.6,2655.5,3.76568]
[1724156612635,0.41465873,2655.6,2655.5,3.76568]
[1724156612817,0.96465873,2655.6,2655.5,3.76568]
[1724156613738,0.96465873,2655.6,2655.3,3.76593]
[1724156613976,0.55,2655.5,2655.3,3.76593]
[1724156614418,0.55,2655.5,2655.4,3.76591]
[1724156614623,0.55,2655.5,2655.3,3.76597]
[1724156618783,0.55,2655.5,2655.2,3.76608]
[1724156619971,1.01436859,2655.5,2655.2,3.76608]
[1724156620423,2.60936859,2655.5,2655.2,3.76608]
[1724156621629,0.55,2655.5,2655.4,6.25241]
[1724156621829,1.97018043,2656.0,2655.7,3.76545]
[1724156622084,0.41464352,2655.9,2655.7,7.53082]
[1724156622397,0.41464352,2655.8,2655.7,3.76541]
[1724156623880,2.3225,2655.7,2655.4,3.7659]
[1724156624081,0.96464352,2655.6,2655.4,3.7659]
[1724156624382,0.55,2655.6,2655.4,3.7659]
[1724156627693,0.55,2655.6,2655.3,3.76603]
[1724156628499,0.55,2655.6,2655.2,3.7661]
[1724156628670,1.749832,2655.6,2655.2,3.7661]
[1724156628991,2.00968262,2655.5,2655.2,3.7661]
[1724156629300,3.8995,2655.3,2655.2,3.7661]
[1724156629657,4.4495,2655.3,2655.2,3.7661]
[1724156629851,2.145,2655.3,2655.2,3.7661]
[1724156630193,2.145,2655.3,2655.0,3.76639]
[1724156630393,0.55,2655.2,2655.0,3.76639]
[1724156630697,0.55,2655.2,2655.1,3.76633]
[1724156637192,0.55,2655.4,2655.2,3.76613]
[1724156637401,0.41469485,2655.3,2655.2,3.76613]
[1724156637584,0.96469485,2655.3,2655.2,3.76613]
[1724156640000,0.96469485,2655.3,2655.2,6.24223]
[1724156641985,0.96469485,2655.3,2655.2,3.76613]
[1724156643508,0.96468201,2655.3,2655.2,3.76613]
[1724156643681,0.55,2655.3,2655.2,3.76613]
[1724156643867,0.41468201,2655.3,2655.2,3.76613]
[1724156644069,0.96468201,2655.3,2655.2,3.76613]
[1724156646176,0.41468201,2655.3,2655.2,7.53232]
[1724156647471,1.97343944,2655.4,2655.3,3.76605]
[1724156647764,2.93812492,2655.4,2655.3,3.76605]
[1724156648170,3.62825014,2655.4,2655.0,6.02544]
[1724156648465,2.93812492,2655.3,2655.1,3.76625]
[1724156648611,0.41468548,2655.2,2655.1,3.76625]
[1724156648812,0.96468548,2655.2,2655.1,3.76625]
[1724156651566,0.96469458,2655.2,2655.1,3.76625]
[1724156652041,0.96469458,2655.2,2655.1,7.53258]
[1724156652860,0.41469458,2655.2,2655.1,7.53258]
[1724156653154,0.41469458,2655.2,2655.1,9.86078]
[1724156655645,1.97764051,2655.4,2655.3,3.76605]
[1724156655941,2.9423411,2655.4,2655.3,3.76605]
[1724156656404,2.9423411,2655.4,2655.1,3.76625]
[1724156656405,0.96469167,2655.4,2655.2,3.76618]
[1724156656609,2.39236888,2655.3,2655.2,3.76618]
[1724156656805,2.39236888,2655.3,2654.9,2.2807]
[1724156656806,3.64442856,2655.3,2654.9,3.76654]
[1724156657048,4.53758883,2655.2,2654.9,3.76654]
[1724156657247,2.39258883,2655.1,2654.9,3.76654]
[1724156657425,0.96469167,2655.0,2654.9,3.76654]
[1724156663170,0.55,2655.0,2654.9,3.76654]
[1724156663677,0.96471605,2655.0,2654.8,3.76675]
[1724156663849,0.41471605,2654.9,2654.8,3.76675]
[1724156664151,0.41471605,2654.9,2654.6,3.76704]
[1724156664152,1.30733766,2654.9,2654.6,3.76704]
[1724156664358,0.96471605,2654.8,2654.6,3.76704]
[1724156664544,0.41471605,2654.7,2654.6,3.76704]
[1724156664853,0.96471605,2654.7,2654.6,3.76704]
[1724156666235,0.96471605,2654.7,2654.5,11.0771]
[1724156666550,2.00971605,2654.6,2654.5,7.31]
[1724156666750,2.55971605,2654.6,2654.5,7.31]
[1724156666962,2.145,2654.6,2654.5,7.31]
[1724156667129,2.55978928,2654.6,2654.5,7.31]
[1724156667327,2.55978839,2654.6,2654.5,7.31]
[1724156667952,0.96478839,2654.6,2654.5,7.31]
[1724156668653,0.41478839,2654.6,2654.5,11.07718]
[1724156669347,0.41478839,2654.6,2654.5,3.76718]
[1724156671463,0.96478839,2654.6,2654.4,3.76725]
[1724156671628,0.55,2654.6,2654.4,3.76725]
[1724156672029,0.55,2654.6,2654.1,22.11]
[1724156672223,0.55,2654.6,2654.4,3.76724]
[1724156672465,2.55979595,2654.5,2654.0,14.84578]
[1724156672625,1.595,2654.2,2654.0,11.07789]
[1724156672831,0.55,2654.1,2654.0,11.07789]
[1724156673063,0.96487433,2654.1,2654.0,7.31]
[1724156673544,0.55,2654.1,2654.0,7.31]
[1724156673943,0.55,2654.1,2654.0,11.07789]
[1724156675666,0.55,2654.3,2654.0,11.07789]
[1724156677137,0.55,2654.3,2654.0,14.84571]
[1724156677774,0.55,2654.3,2654.0,11.07782]
[1724156678476,0.55,2654.3,2654.0,3.76782]
[1724156678674,0.55,2654.3,2654.0,7.53565]
[1724156679042,0.55,2654.3,2654.0,3.76782]
[1724156679243,0.55,2654.3,2654.0,7.53565]
[1724156680781,0.55,2654.3,2654.0,3.76782]
[1724156681398,1.595,2654.2,2654.0,3.76782]
[1724156681595,0.55,2654.1,2654.0,3.76782]
[1724156682193,0.7645,2654.1,2653.8,0.79148964]
[1724156682408,0.7645,2654.1,2653.8,4.55964964]
[1724156682549,0.7645,2654.1,2653.8,3.76816]
[1724156684487,0.7645,2654.1,2653.7,3.76831]
[1724156684875,1.595,2654.0,2653.7,3.76831]
[1724156685193,0.55,2653.9,2653.7,3.76831]
[1724156686993,1.595,2653.8,2653.6,3.76835]
[1724156687289,0.55,2653.7,2653.6,3.76835]
[1724156688461,0.55,2653.7,2653.5,3.76859]
[1724156690780,0.55,2653.7,2653.5,7.53712]
[1724156691053,0.55,2653.7,2653.5,3.76853]
[1724156691284,0.55,2653.7,2653.5,3.76852]
[1724156691687,0.55,2653.7,2653.5,7.53705]
[1724156692195,2.2961,2653.6,2653.4,3.76871]
[1724156692503,0.55,2653.5,2653.4,3.76874]
[1724156695568,0.171875,2653.5,2653.4,5.253489]
[1724156695763,2.75420364,2655.1,2653.6,1.69561497]
[1724156695764,2.36111588,2654.9,2653.6,1.69561497]
[1724156695963,2.75420364,2655.4,2653.4,9.28832739]
[1724156695964,2.75420364,2655.4,2655.0,15.06588]
[1724156696275,3.25340305,2657.1,2655.0,15.06588]
[1724156696276,4.71976015,2656.8,2656.2,3.7647]
[1724156696508,4.71976015,2656.8,2655.1,38.4675565]
[1724156696509,1.595,2656.7,2655.1,1.506588]
[1724156696662,1.595,2656.7,2656.3,3.76459]
[1724156697018,2.346,2657.1,2656.0,3.76498]
[1724156697019,1.595,2656.5,2656.0,3.76498]
[1724156697830,1.595,2656.3,2655.8,3.0]
[1724156697969,1.595,2656.1,2655.5,6.76571]
[1724156698174,2.4644,2656.4,2655.5,4.689961]
[1724156698417,1.595,2656.0,2655.5,4.689961]
[1724156698699,2.4644,2656.4,2655.3,3.0]
[1724156699005,3.826,2656.2,2655.3,3.0]
[1724156699305,0.55,2656.1,2655.3,3.0]
[1724156699816,0.55,2656.1,2655.3,6.76599]
[1724156700112,0.55,2656.1,2655.4,3.76589]
[1724156700424,2.4644,2656.4,2655.4,0.676589]
[1724156700722,2.4644,2656.4,2655.6,3.7656]
[1724156701927,0.55,2656.3,2655.6,3.7656]
[1724156702887,0.55,2656.3,2655.4,3.7659]
[1724156703076,0.55,2656.3,2655.3,3.76601]
[1724156703077,2.2606,2656.0,2655.3,3.76601]
[1724156703269,0.60866,2655.9,2655.3,3.76601]
[1724156703469,1.15866,2655.9,2655.3,3.76601]
[1724156703919,3.826,2655.8,2655.2,7.31]
[1724156704127,0.55,2655.7,2655.2,7.31]
[1724156704932,0.55,2655.7,2655.2,11.07618]
[1724156705093,1.424986,2655.7,2655.2,11.07618]
[1724156707081,1.424986,2655.7,2655.3,3.76603]
[1724156707389,0.60866,2655.9,2655.2,7.31]
[1724156707728,2.2606,2656.0,2655.7,3.76539]
[1724156707892,2.2606,2656.0,2655.9,3.7652]
[1724156708472,2.3537,2656.6,2656.0,3.76494]
[1724156708679,0.994376,2656.5,2655.9,3.7652]
[1724156709819,0.55,2656.4,2655.7,3.76537]
[1724156710327,4.31449,2656.4,2655.7,3.76537]
[1724156710778,3.76463,2656.3,2655.7,3.76537]
[1724156710980,0.981463,2656.2,2655.7,3.76537]
[1724156712013,0.981463,2656.2,2655.7,7.53076]
[1724156712175,0.981463,2656.2,2655.7,3.76537]
[1724156712677,6.09144,2656.1,2655.3,3.76598]
[1724156712878,1.2572903,2656.0,2655.2,7.31]
[1724156713080,1.2572903,2656.0,2654.5,22.1493]
[1724156713081,6.09213,2655.6,2654.9,7.53311]
[1724156713334,6.09213,2655.6,2654.9,7.53304]
[1724156713634,0.55,2655.5,2655.0,3.76643]
[1724156714374,0.55,2655.5,2654.9,3.76651]
[1724156714580,0.55,2655.5,2655.0,3.76639]
[1724156714779,1.590778,2655.5,2655.0,3.76639]
[1724156715224,1.590778,2655.5,2655.1,3.76633]
[1724156715536,0.55,2655.5,2655.1,3.76625]
[1724156717499,0.55,2655.5,2655.1,7.5325]
[1724156718035,0.55,2655.5,2655.1,7.53249]
[1724156718610,0.55,2655.5,2655.2,3.76619]
[1724156718821,1.214207,2655.5,2655.2,3.76619]
[1724156719486,1.214207,2655.5,2655.1,7.53247]
[1724156721616,1.214207,2655.5,2655.2,3.76617]
[1724156723546,0.55,2655.5,2655.2,3.76617]
[1724156723893,0.55,2655.5,2655.4,3.76591]
[1724156736835,0.55,2655.5,2655.1,3.76623]
[1724156737035,3.76636,2655.1,2654.5,6.15745]
[1724156737273,3.76636,2655.1,2654.5,7.53414]
[1724156737574,2.4584,2654.9,2654.4,7.31]
[1724156737739,2.4584,2654.9,2654.3,3.76734]
[1724156737936,0.55,2654.8,2654.3,3.76734]
[1724156738344,4.31684,2654.8,2654.3,3.76734]
[1724156738699,1.6418426,2654.8,2654.3,7.53472]
[1724156738996,0.55,2654.8,2654.3,7.53472]
[1724156739194,0.55,2654.8,2654.3,3.76734]
[1724156739673,4.31681,2654.8,2654.3,3.76734]
[1724156740765,0.55,2654.8,2654.3,3.76734]
[1724156741070,0.55,2654.8,2654.4,3.76732]
[1724156741317,0.55,2654.8,2654.6,3.76701]
[1724156741495,0.55,2655.0,2654.4,7.53452]
[1724156741676,0.55,2655.0,2654.4,3.7672]
[1724156741876,5.746678,2655.0,2654.4,3.7672]
[1724156742448,3.76667,2654.9,2654.4,3.7672]
[1724156742645,0.55,2654.8,2654.4,3.7672]
[1724156743083,0.55,2654.8,2654.5,3.76716]
[1724156743282,0.55,2654.9,2654.5,3.76716]
[1724156743525,3.76678,2654.8,2654.3,3.76743]
[1724156743713,0.55,2654.7,2654.3,3.76743]
[1724156744383,0.55,2654.7,2654.4,3.76724]
[1724156744582,0.55,2654.8,2654.4,3.76724]
[1724156745594,0.55,2654.8,2654.4,3.133079]
[1724156745802,2.3035,2655.6,2654.9,3.76652]
[1724156746002,2.3035,2655.6,2655.1,3.76629]
[1724156746233,6.06916,2655.6,2655.1,3.76629]
[1724156746733,6.06916,2655.6,2654.9,7.53301]
[1724156746734,9.83488,2655.6,2654.9,7.53301]
[1724156746897,6.06916,2655.6,2655.0,3.76645]
[1724156747318,0.55,2655.5,2655.0,3.76645]
[1724156748032,0.5,2655.5,2655.0,3.76645]
[1724156748810,0.5,2655.5,2654.9,5.250791]
[1724156749000,0.5,2655.5,2655.1,3.76633]
[1724156750442,0.5,2655.5,2654.9,9.017291]
[1724156750744,0.5,2655.5,2655.0,3.76647]
[1724156752110,3.71591,2655.4,2654.9,5.250791]
[1724156752310,0.55,2655.3,2654.9,5.250791]
[1724156752535,0.55,2655.3,2654.7,14.84361]
[1724156752841,3.76642,2655.1,2654.7,7.31]
[1724156753139,0.55,2655.0,2654.7,7.31]
[1724156753438,0.55,2655.1,2654.6,3.767]
[1724156753665,0.55,2655.1,2654.9,3.7665]
[1724156753944,0.55,2655.3,2654.9,7.53303]
[1724156754297,0.55,2655.3,2654.9,3.7665]
[1724156754504,0.55,2655.4,2654.9,3.7665]
[1724156754824,4.31597,2655.4,2654.9,3.7665]
[1724156755039,0.55,2655.4,2654.9,7.53304]
[1724156755235,0.55,2655.4,2654.9,3.7665]
[1724156755910,0.55,2655.4,2655.0,3.76646]
[1724156756643,4.31592,2655.4,2654.9,3.7665]
[1724156757144,4.31592,2655.4,2654.9,7.53304]
[1724156757349,0.5,2655.4,2654.9,0.753304]
[1724156757647,2.3035,2655.6,2655.1,3.76624]
[1724156757648,6.06914,2655.6,2655.1,3.76624]
[1724156758748,3.76564,2655.6,2655.1,3.76624]
[1724156759118,6.12496,2655.8,2655.2,3.76612]
[1724156759327,2.3595,2656.8,2655.8,3.76521]
[1724156759587,3.76464,2656.3,2655.8,3.76521]
[1724156759869,3.765,2656.1,2655.5,3.76566]
[1724156760072,3.7652,2655.9,2655.3,7.31]
[1724156760211,3.76551,2655.7,2655.3,7.31]
[1724156760917,2.3595,2655.8,2655.3,11.07593]
[1724156760918,0.55,2655.6,2655.3,11.07593]
[1724156761151,4.31551,2655.7,2655.3,7.31]
[1724156761358,3.76578,2655.5,2655.3,7.31]
[1724156761667,0.55,2655.4,2654.8,6.76665]
[1724156761835,0.55,2655.4,2655.0,3.76638]
[1724156762160,0.55,2655.4,2654.8,10.53328]
[1724156762313,0.55,2655.4,2654.9,3.76657]
[1724156762521,0.55,2655.4,2655.0,3.76647]
[1724156762832,0.5,2655.4,2655.0,3.76647]
[1724156763043,0.5,2655.4,2654.8,7.73716591]
[1724156763254,2.4996,2655.3,2654.8,3.76662]
[1724156763411,6.26574,2655.3,2654.7,7.31]
[1724156763615,6.26574,2655.3,2654.6,3.76696]
[1724156764121,3.76636,2655.1,2654.6,7.53392]
[1724156764349,3.7662,2655.2,2654.6,8.36683647]
[1724156764972,0.55,2655.1,2654.6,4.59987647]
[1724156765115,0.55,2655.1,2654.6,3.76696]
[1724156765465,0.55,2655.1,2654.6,7.53392]
[1724156766051,0.55,2655.1,2654.7,3.76686]
[1724156766232,0.55,2655.2,2654.7,3.76686]
[1724156766553,4.31619,2655.2,2654.7,3.76686]
[1724156766743,4.31619,2655.2,2654.6,3.76696]
[1724156767351,4.26619,2655.2,2654.6,7.53392]
[1724156767542,4.26619,2655.2,2654.6,3.76696]
[1724156767854,4.26619,2655.2,2654.6,7.53392]
[1724156768053,9.1283058,2655.2,2654.6,3.76696]
[1724156768218,3.76634,2655.1,2654.6,3.76696]
[1724156768815,7.53316,2655.0,2654.4,3.76724]
[1724156769012,6.18409,2654.9,2654.4,3.76724]
[1724156769414,0.55,2654.8,2654.4,3.76724]
[1724156769754,0.55,2654.8,2654.5,3.76718]
[1724156770130,0.55,2654.8,2654.4,3.76724]
[1724156771886,0.55,2654.8,2654.4,7.53449]
[1724156772391,0.55,2654.8,2654.5,3.76715]
[1724156776931,0.55,2654.8,2654.5,0.753459]
[1724156777064,0.55,2654.8,2654.7,3.7669]
[1724156777265,6.13617,2655.5,2654.9,3.76653]